Cogmind - Beta 16.1 @@@ ROGUE MODE // 2026.04.03 @ 18:08:19 Player: Lazz Result: Self-destructed Performance ------------- Evolutions (2) 1000 Regions Visited (3) 600 Robots Destroyed (20) 100 Value Destroyed (544) 544 Prototype IDs (3) 60 Alien Tech Used (0) 0 Bonus (0) 0 TOTAL SCORE: 2304 Bonus ------- None Cogmind --------- Core Integrity 175/550 Matter 103/300 Energy 290/290 System Corruption 0% Temperature Warning (317) Movement Treading (250) Ox1 Location -8/Materials Parts ------- > --- POWER (1) -------- Reinforced Deuterium Engine > --- PROPULSION (3) --- Armored Treads > --- UTILITY (4) ------ Large Storage Unit Active Sensor Suite > --- WEAPON (3) ------- (None) > --- INVENTORY (15) --- Improved Ion Engine Improved Deuterium Engine Improved Deuterium Engine Armored Treads Aluminum Leg Aluminum Leg Improved Carbon-fiber Leg Improved Carbon-fiber Leg Improved Cooling System Large Matter Pod (0) Subdweller Optics Subdweller Optics Subdweller Laser Peak State ------------ > --- POWER ------------ Reinforced Deuterium Engine > --- PROPULSION ------- Light Treads Armored Treads Advanced Treads > --- UTILITY ---------- Large Storage Unit Active Sensor Suite > --- WEAPON ----------- Autogun Autogun Autogun > --- INVENTORY -------- Improved Ion Engine Improved Deuterium Engine Improved Deuterium Engine Light Treads Aluminum Leg Aluminum Leg Improved Carbon-fiber Leg Improved Carbon-fiber Leg Improved Cooling System Large Matter Pod Subdweller Optics Subdweller Optics Subdweller Laser Grenade Launcher Mining Laser [Rating: 48] Favorites ----------- Power Improved Ion Engine Engine Improved Ion Engine Propulsion Light Treads Treads Light Treads Leg Aluminum Leg Utility Seismic Detector Device Seismic Detector Storage Large Storage Unit Processor Core Analyzer Protection Light Armor Plating Weapon Autogun Energy Gun EM Pulse Gun Ballistic Gun Autogun Launcher Grenade Launcher Special Weapon Mining Laser Build | -11 -10 -10 -8 ------- Run | Yrd Mat Sub Mat Slots Evolved 4 | . . . 4 Power . | . . . . Propulsion 1 | . . . 1 Utility 2 | . . . 2 Weapon 1 | . . . 1 Parts Attached 24 | 9 5 . 10 Power 3 | 1 1 . 1 Engine 3 | 1 1 . 1 Core . | . . . . Reactor . | . . . . Propulsion 7 | 4 . . 3 Treads 5 | 2 . . 3 Leg 2 | 2 . . . Wheel . | . . . . Hover . | . . . . Flight . | . . . . Utility 6 | 2 1 . 3 Device 2 | 1 . . 1 Storage 2 | 1 1 . . Processor 1 | . . . 1 Hackware . | . . . . Protection 1 | . . . 1 Artifact . | . . . . Weapon 8 | 2 3 . 3 Energy Gun 1 | 1 . . . Energy Cannon . | . . . . Ballistic Gun 5 | 1 2 . 2 Ballistic Cannon . | . . . . Launcher 1 | . . . 1 Special Weapon 1 | . 1 . . Impact Weapon . | . . . . Slashing Weapon . | . . . . Piercing Weapon . | . . . . Special Melee Weapon . | . . . . Unidentified Prototypes 1 | . . . 1 Parts Lost 8 | . . . 8 Power . | . . . . Propulsion 2 | . . . 2 Utility . | . . . . Weapon 6 | . . . 6 Highest Loss Streak 7 | . . . 7 To Critical Strikes . | . . . . Average Backups 8 | 2 5 11 12 Power . | . . 1 1 Propulsion 2 | 1 2 2 3 Utility 2 | . 1 3 3 Weapon 2 | . 1 4 3 Tool/Special . | . . . . Unused Backups 11 | . . . 11 Power 3 | . . . 3 Propulsion 2 | . . . 2 Utility 5 | . . . 5 Weapon 1 | . . . 1 Tool/Special . | . . . . Average Slot Usage (%) 92 | . 95 100 81 Engine 12 | . 14 14 9 Treads 26 | . 28 28 23 Device 12 | . 14 14 9 Storage 12 | . 14 14 9 Protection 1 | . . . 4 Ballistic Gun 19 | . 17 18 22 Special Weapon 5 | . 6 9 1 Peak Build Rating 48 | 6 11 11 48 Average Rating 12 | 3 7 10 25 On Entrance 6 | . 6 11 10 Avg Prop Armor Cover (%) . | . . . . Naked Turns . | . . . . Heaviest Build 48 | 10 34 34 48 Greatest Support 62 | 40 40 40 62 Greatest Overweight (x) . | . . . . Average Overweight (x) . | . . . . Largest Inventory Capacity 15 | 8 15 15 15 Average Capacity 12 | 5 12 15 15 Most Carried 15 | 4 9 12 15 Average Carried 8 | 2 5 11 12 Final Capacity 15 | 8 15 15 15 Final Carried 13 | 4 9 12 13 Class Distribution -------------------- 79% | Mutant 9% | Tank 7% | Skirmisher Dominant Class ---------------- Mutant | -10/Materials Mutant | -10/Subcaves Tank | -8/Materials Resources | -11 -10 -10 -8 ----------- Run | Yrd Mat Sub Mat Matter Collected 821 | 391 . 86 344 Remotely . | . . . . Salvage Created 724 | 213 . 86 425 Parts 53 | 15 . 4 34 Haulers Intercepted . | . . . . Recyclers Shooed 1 | 1 . . . Parts Field Recycled . | . . . . Retrieved Matter . | . . . . Parts Self-Destructed 6 | . . 6 . Prevented . | . . . . Parts Restored . | . . . . Kills | -11 -10 -10 -8 ------- Run | Yrd Mat Sub Mat Combat Hostiles Destroyed 12 | . . 2 10 Guns 11 | . . 2 9 AOE 1 | . . . 1 Classes Destroyed 9 | 3 . 1 5 Worker 2 | 2 . . . Tunneler 5 | 5 . . . Recycler 1 | 1 . . . Swarmer 3 | . . . 3 Grunt 3 | . . . 3 Sentry 1 | . . . 1 Specialist 2 | . . . 2 Heavy 1 | . . . 1 Subdweller 2 | . . 2 . Best Kill Streak 5 | 5 . 2 4 Combat Bots Only 4 | . . 2 4 Max Kills in Single Turn 2 | 1 . 1 2 Gunslinging 1 | . . . 1 Exploded 1 | . . . 1 Melee . | . . . . Uniques/NPCs Destroyed . | . . . . Combat | -11 -10 -10 -8 -------- Run | Yrd Mat Sub Mat Hostile Shots Fired 147 | . . 4 143 Missed 34 | . . 3 31 Hits 113 | . . 1 112 Projectile 113 | . . 1 112 Critical Strikes 4 | . . . 4 Damage Taken 1884 | . . 25 1859 Core 375 | . . . 375 Absorbed by Shields . | . . . . Core Remaining (%) 100 | 100 . 100 . Volleys Fired 107 | 50 2 19 36 Largest 3 | 2 1 2 3 Hottest 100 | 60 100 100 76 Shots Fired 182 | 52 2 28 100 Gun 166 | 52 . 18 96 Cannon . | . . . . Launcher 4 | . . . 4 Special 12 | . 2 10 . Kinetic 164 | 50 . 18 96 Thermal 12 | . 2 10 . Explosive 4 | . . . 4 Electromagnetic 2 | 2 . . . Robot Hit Streak 13 | 9 . 2 13 Robot Miss Streak 3 | 3 . 1 2 Penetration Max . | . . . . Secondary Targets 2 | . . . 2 Max Gunslinging Chain 2 | . . . 2 Shots Hit Robots 115 | 36 . 6 73 Core Hits 46 | 14 . 4 28 Critical Kills . | . . . . Critical Parts Destroyed . | . . . . Critical Strikes . | . . . . Melee Attacks . | . . . . Impact . | . . . . Slashing . | . . . . Piercing . | . . . . Sneak Attacks . | . . . . Combat Hostiles . | . . . . Follow-up Attacks . | . . . . Damage Inflicted 2116 | 297 . 93 1726 Guns 1514 | 297 . 93 1124 Cannons . | . . . . Explosions 588 | . . . 588 Melee . | . . . . Ramming 14 | . . . 14 Kinetic 1514 | 297 . 93 1124 Thermal . | . . . . Explosive 588 | . . . 588 Electromagnetic . | . . . . Impact . | . . . . Slashing . | . . . . Piercing . | . . . . Highest Corruption . | . . . . Average Corruption . | . . . . Corruption Purged . | . . . . Corruption Blocked . | . . . . Overload Shots . | . . . . Overflow Damage 15 | . . . 15 Projectiles . | . . . . Explosions 15 | . . . 15 Melee . | . . . . Knockbacks . | . . . . Impact . | . . . . Kinetic . | . . . . Secondary . | . . . . Self-Inflicted Damage 44 | . . . 44 Shots 3 | . . . 3 Rammed 3 | . . . 3 Targets Rammed 3 | . . . 3 Kicked . | . . . . Crushed . | . . . . Highest Temperature 299 | 10 20 . 299 Average Temperature 85 | 7 10 . 94 Received Heat Transfer 666 | . . 9 657 Effects 1 | . . . 1 Energy Bleed 1 | . . . 1 Siege Activations . | . . . . Martial Activations . | . . . . Shielding Activations . | . . . . Robots Disrupted . | . . . . Combat Hostiles . | . . . . Robots Corrupted . | . . . . Combat Hostiles . | . . . . Parts Fried . | . . . . Impact Corruptions . | . . . . Robots Melted . | . . . . Combat Hostiles . | . . . . Parts Melted 1 | . . 1 . Heat Transferred . | . . . . Parts Sabotaged . | . . . . Parts Stolen . | . . . . Parts Stripped . | . . . . Power Chain Reactions . | . . . . Alert | -11 -10 -10 -8 ------- Run | Yrd Mat Sub Mat Maximum Alert Level 1 | . . . 1 Low Security (%) 98 | 100 100 . 95 Level 1 1 | . . . 4 Level 2 . | . . . . Level 3 . | . . . . Level 4 . | . . . . Level 5 . | . . . . High Security . | . . . . Max Security . | . . . . Peak Influence 240 | 15 31 . 240 Initial . | . . . . Average 19 | 1 5 . 50 Influence Increases 485 | 40 83 . 362 Destroy 0b10 Robot/C 200 | . . . 200 Destroy 0b10 Robot/NC 40 | 40 . . . Destroy Leader 70 | . . . 70 Successful Hack 21 | . 21 . . Select Force Hacks 60 | . 60 . . Disable Machine 30 | . . . 30 Destroy Structure 4 | . 2 . 2 Lose Combat Pursuer 60 | . . . 60 Influence Decreases 303 | 40 83 . 180 Time Decay 223 | 40 83 . 100 Lost Part 80 | . . . 80 Squads Dispatched 10 | . 3 . 7 Investigation 4 | . 3 . 1 Extermination . | . . . . Reinforcement 4 | . . . 4 Assault . | . . . . Garrison 2 | . . . 2 Intercept . | . . . . Searches Triggered . | . . . . Construction Impeded 1 | . . . 1 Haulers Reinforced . | . . . . Active Scanning Responses . | . . . . Cargo Convoy Interrupts . | . . . . Stealth | -11 -10 -10 -8 --------- Run | Yrd Mat Sub Mat Distress Signals 3 | . . . 3 Communications Jammed . | . . . . Distress Signals . | . . . . Times Spotted 27 | . 1 2 24 Peak Tracking Total 11 | . 1 2 11 Tactical Retreats 3 | . . . 3 Traps | -11 -10 -10 -8 ------- Run | Yrd Mat Sub Mat Traps Triggered 1 | . 1 . . Indirectly . | . . . . Trap Hack Attempts . | . . . . Triggered . | . . . . Disarmed . | . . . . Reprogrammed . | . . . . Reused . | . . . . Traps Extracted . | . . . . Installed . | . . . . Triggered . | . . . . Machines | -11 -10 -10 -8 ---------- Run | Yrd Mat Sub Mat Machines Disabled 2 | . . . 2 Max in Single Turn 2 | . . . 2 Machines Repaired . | . . . . Machines Dismantled . | . . . . Machines Sabotaged . | . . . . Overloaded Fab Kills . | . . . . Hacking | -11 -10 -10 -8 --------- Run | Yrd Mat Sub Mat Machines Accessed 7 | . 5 . 2 Terminals 4 | . 3 . 1 Fabricators . | . . . . Repair Stations . | . . . . Recycling Units 2 | . 2 . . Scanalyzers . | . . . . Garrison Access 1 | . . . 1 Total Hacks 17 | . 11 . 6 Successful 8 | . 8 . . Failed 9 | . 3 . 6 Catastrophic . | . . . . Database Lockouts . | . . . . Manual 9 | . 6 . 3 Terminals 12 | . 9 . 3 Fabricators . | . . . . Repair Stations . | . . . . Recycling Units 2 | . 2 . . Scanalyzers . | . . . . Garrison Access 3 | . . . 3 Terminal Hacks 4 | . 4 . . Prototype ID Bank 1 | . 1 . . Terminal Index 1 | . 1 . . Scanalyzer Index 1 | . 1 . . Zone Layout 1 | . 1 . . Fabricator Hacks . | . . . . Repair Station Hacks . | . . . . Recycling Unit Hacks . | . . . . Scanalyzer . | . . . . Garrison Access Hacks . | . . . . Unauthorized Hacks 4 | . 4 . . Terminals 2 | . 2 . . Botnet 2 | . 2 . . Fabricators . | . . . . Repair Stations . | . . . . Recycling Units 2 | . 2 . . Tunnel 2 | . 2 . . Scanalyzers . | . . . . Garrison Access . | . . . . Data Cores Recovered . | . . . . Used . | . . . . Hacking Detections 5 | . 3 . 2 Full Trace Events 1 | . . . 1 Feedback Events . | . . . . Feedback Blocked . | . . . . Robot Schematics Acquired . | . . . . Robots Built . | . . . . Authchips . | . . . . Time . | . . . . Total Robot Build Rating . | . . . . Part Schematics Acquired . | . . . . Parts Built . | . . . . Authchips . | . . . . Time . | . . . . Total Part Build Rating . | . . . . Part Studies Acquired . | . . . . Parts Repaired . | . . . . Time . | . . . . Parts Recycled . | . . . . Recycled Matter . | . . . . Retrieved Matter . | . . . . Retrieved Components . | . . . . Parts Scanalyzed . | . . . . Part Schematics Acquired . | . . . . Parts Damaged . | . . . . Bothacking | -11 -10 -10 -8 ------------ Run | Yrd Mat Sub Mat Used RIF Installer . | . . . . Robots Hacked . | . . . . Non-combat . | . . . . Combat . | . . . . Robot Hacks Applied . | . . . . Relay Couplers Released . | . . . . Fabnet Peak Effective % . | . . . . Robots Rewired . | . . . . Allies Hacked . | . . . . Hacks Repelled . | . . . . Allies | -11 -10 -10 -8 -------- Run | Yrd Mat Sub Mat Total Allies . | . . . . Largest Group . | . . . . Highest-Rated Group . | . . . . Highest-Rated Ally . | . . . . Total Orders . | . . . . Ally Attacks . | . . . . Total Damage . | . . . . Kills . | . . . . Allies Corrupted . | . . . . Allies Melted . | . . . . Intel | -11 -10 -10 -8 ------- Run | Yrd Mat Sub Mat Active Infowar (turns) 1241 | 28 498 355 360 A.S.S. 109 | . . . 109 Seismic 1132 | 28 498 355 251 Robot Analysis Total . | . . . . Derelict Logs Recovered . | . . . . Drone Launches . | . . . . Drone Recoveries . | . . . . Exploration | -11 -10 -10 -8 ------------- Run | Yrd Mat Sub Mat Turns Passed 1474 | 259 498 355 362 Spaces Moved 606 | 99 207 179 121 Core 5 | 5 . . . Treads 597 | 90 207 179 121 Legs 4 | 4 . . . Wheels . | . . . . Hover . | . . . . Flight . | . . . . Fastest Speed 50 | 50 160 160 155 Average Speed 158 | 152 160 160 158 Slowest Speed 160 | 160 160 160 160 Overloaded Moves . | . . . . Propulsion Burnouts . | . . . . Robots Hopped . | . . . . Potential Cave-ins . | . . . . Cave-ins Triggered . | . . . . Exploration Rate (%) 18 | 4 43 14 14 Regions Visited 3 Branch Regions 1 Pre-discovered Areas 2 | . 2 . . Known Exits Taken . | . . . . Unknown Exits Taken 3 | 1 1 1 . Scrap Searched . | . . . . Spaces Dug 2 | . 2 . . Terrain Destroyed 3 | . 2 . 1 Melee . | . . . . Projectile 2 | . 2 . . AOE 1 | . . . 1 Terrain Rammed . | . . . . Walls Destroyed . | . . . . Machines Disabled . | . . . . Actions | -11 -10 -10 -8 --------- Run | Yrd Mat Sub Mat Total 964 | 162 368 203 231 Wait 195 | . 146 2 47 Move 603 | 98 206 178 121 Hop . | . . . . Pick Up 16 | 2 5 3 6 Fast Attach 14 | 9 2 . 3 Attach 6 | . 1 . 5 Detach 3 | 2 1 . . Swap 7 | . 2 1 4 Drop 10 | 1 3 . 6 Fire 107 | 50 2 19 36 Melee . | . . . . Ram . | . . . . Kick . | . . . . Crush 3 | . . . 3 Escape Stasis . | . . . . Rewire . | . . . . Trap . | . . . . Miscellaneous . | . . . . Route ------- -11/Scrapyard -10/Materials (discovered 3 exits: [*Mat] / [*Min] / [*Sub]) -10/Subcaves -8/Materials History --------- Turn | Location | Event 5 | -11/Scrapyard | Discovered new exit (range 16) 260 | -11/Scrapyard | Entered Materials 318 | -10/Materials | Build established: Mutant 429 | -10/Materials | Discovered new exit (range 3) 675 | -10/Materials | Discovered new exit (range 6) 745 | -10/Materials | Discovered new exit (range 4) 758 | -10/Materials | Entered Subcaves 759 | -10/Subcaves | Approached by a straggling Scientist 973 | -10/Subcaves | Discovered new exit (range 12) 1113 | -10/Subcaves | Entered Materials 1113 | -8/Materials | Evolved 4 slots: Propulsion x1, Utility x2, Weapon x1 1345 | -8/Materials | Garrison activated, responded to threat 1366 | -8/Materials | Found Prototype Device 1366 | -8/Materials | Identified Active Sensor Suite 1444 | -8/Materials | Core integrity fell below 50% 1475 | -8/Materials | Self-destructed Last Messages --------------- 01451_ Switching to secondary target: S-10 Pest. 01451_ S-10 Pest destroyed. 01451_ Switching to secondary target: S-10 Pest. 01454_ S-10 Pest destroyed. 01457_ Autogun destroyed. 01459_ Processing Tank disabled. 01461_ Autogun destroyed. 01462_ G-47 Trooper destroyed. 01463_ U-05 Engineer lays Concrete. 01463_ Critical hit (Burn: +37). 01465_ Destroyed Welding Torch. 01465_ Lgt. Treads destroyed. 01466_ ALERT: Construction progress impeded, dispatching reinforcements to local area. 01468_ Critical hit (Burn: +37). 01468_ Grenade Launcher destroyed. 01468_ Destroyed Grenade Launcher. 01471_ Adv. Treads destroyed. 01474_ Mining Laser destroyed. 01475_ Autogun destroyed. Map ----- +----------------------------------------------------+ | ????????# # #??? | | ????????# # """ #??? | | ????????# # """" #??? | | ????????# # """" #??? | | ????????# / """ #??? | | ????????# # "" #??? | | ????????# # #??? | | ????????# # #??? | | ????????# ######+####??? | | ?????#??# ????# #?????? | | ?????# ????# #?????? | | ?????# ????# #?????? | | ?????# #####????#=#?????? | | ?????# ????????##!#?????? | | ?????# " ????????#=[##????? | | ??#### %" #########!*!#????? | | [*=*=!!!=#????? | | ???????## !#### ![#????? | | ????????#u #??#####????? | | ????????# #???????????? | | ????????# ############# | | ????????# # # | | ????????# # """ " # | | ???????## # """ "G" # | | ???????# # " "g" # | | ???##### # =Y g@ # | | # %Ygg # | | Yg # | | # # | | ####### # " | | ???????# # " " """ # | | ???????######### """ """ ! # | | ???????????????# """ """ # | | ???????????????# # | | ???????????????### ######### | | ??????????????????##???????? | | ???????????????????????????? | | ???????????????????????????? | | ???????????????????????????? | | ???????????????????????????? | | ???????????????????????????? | | ???????????????????????????? | | ???????????????????????????? | | ???????????????????????????? | | ???????????????????????????? | | ???????????????????????????? | | ???????????????????????????? | | ???????????????????????????? | | ???????????????????????????? | | ???????????????????????????? | +----------------------------------------------------+ Best States ------------- Heat Dissipation 31 Energy Generation 16 Energy Capacity 290 Matter Stores 300 Matter Capacity 300 Sight Range 16 Robot Scan Range 20 Terrain Scan Density 10 Armor Coverage 150 Evasion (%) 55 Core Analysis 6 Recoil Reduction 3 Item Schematics ----------------- None Robot Schematics ------------------ None Fabricated ------------ Nothing Repaired ---------- Nothing Studied --------- None Alien Tech Used ----------------- None Achievements -------------- None Challenges ------------ None Game ------ Seed ParticleInterceptPod Manual? 0 Play Time 00:12:17 Cumulative 147.9 hours Start 2026.04.03 @ 17:55:37 End 2026.04.03 @ 18:08:19 Sessions 1 Manual Loads 0 Difficulty Rogue Special Mode None Game No. 217 Rogue 217 Adventurer 0 Explorer 0 Win Type - Total 1 Types 1/0/0/0/0/0/0/0/0/0 Lore% 65 Gallery% 57 Achievement% 43 Wizard Run 0 Options --------- Layout 2 ASCII 0 Keyboard 0 Movement Mouse Keybinds 0 Fullscreen 1 Font 24/Smallcaps Map View 50x44 Zoom Use 0% Tactical HUD 1 Map Filters NONE Filters NONE Steam 1 RUN: d81d64ea-d086-41e3-91ad-edf3c15c3143